fUSD/lending_fUSD_20250818
["ID","MTS","AMOUNT","RATE_DAILY","PERIOD"]
[380028637,1755483082788,-1486.365786,0.00013712,2]
[380028638,1755483082797,-668.727183,0.00013719,2]
[380028639,1755483082808,-4896.52636743,0.00013972,2]
[380028640,1755483082884,-3421.76378488,0.00013972,2]
[380028641,1755483085316,-27313.97199563,0.00011289,2]
[380028642,1755483085326,-150.0,0.00013527,2]
[380028643,1755483085337,-500.0,0.00013698,2]
[380028644,1755483085346,-500.0,0.00013698,2]
[380028645,1755483085356,-2459.21,0.00013698,2]
[380028646,1755483085365,-400.0,0.00013698,2]
[380028647,1755483085374,-877.64,0.00013698,2]
[380028648,1755483085383,-500.0,0.00013698,2]
[380028649,1755483085392,-500.0,0.00013698,2]
[380028650,1755483085401,-875.6,0.00013698,2]
[380028651,1755483085411,-500.0,0.00013698,2]
[380028652,1755483085419,-400.0,0.00013698,2]
[380028653,1755483085429,-13270.53,0.00013698,2]
[380028654,1755483085438,-1091.86,0.00013698,2]
[380028655,1755483085449,-400.0,0.00013698,2]
[380028656,1755483085460,-500.0,0.00013698,2]
[380028657,1755483085470,-1091.86,0.00013698,2]
[380028658,1755483085479,-510.22497802,0.00013698,2]
[380028659,1755483085488,-1091.86,0.00013698,2]
[380028660,1755483085498,-400.0,0.00013698,2]
[380028661,1755483085507,-1091.86,0.00013698,2]
[380028662,1755483085518,-400.0,0.00013698,2]
[380028663,1755483085527,-570.441411,0.00013712,2]
[380028664,1755483085537,-213.398066,0.00013712,2]
[380028665,1755483085549,-1032.345759,0.00013712,2]
[380028666,1755483085560,-151.0,0.00013712,2]
[380028667,1755483085569,-151.0,0.00013719,2]
[380028668,1755483085578,-150.0,0.00013808,2]
[380028669,1755483085587,-150.0,0.0001383,2]
[380028670,1755483085596,-207212.63762812,0.00013972,2]
[380028671,1755483085645,-1091.86,0.00013698,2]
[380028672,1755483085656,-92.83665773,0.00013972,2]
[380028673,1755483085668,-557.1725791,0.00013972,2]
[380028674,1755483085778,-3044.1,0.00013972,2]
[380028675,1755483085790,-462.54240133,0.00013972,2]
[380028676,1755483085802,-385.0550683,0.00013972,2]
[380028677,1755483085893,-211.52080512,0.00012881,2]
[380028678,1755483085902,-1091.86,0.00013698,2]
[380028679,1755483085911,-173094.11919488,0.00013972,2]
[380028680,1755483088783,-1091.86,0.00013698,2]
[380028681,1755483088793,-1091.86,0.00013698,2]
[380028682,1755483088802,-575.4,0.00013698,2]
[380028683,1755483088811,-516.92,0.00013698,2]
[380028684,1755483088821,-4353.54,0.00013698,2]
[380028685,1755483088831,-1091.86,0.00013698,2]
[380028686,1755483088844,-1091.86,0.00013698,2]
[380028687,1755483088854,-1028.49,0.00013698,2]
[380028688,1755483088863,-784.21,0.00013698,2]
[380028689,1755483088874,-307.65,0.00013698,2]
[380028690,1755483088883,-624.09140832,0.00013698,2]
[380028691,1755483088907,-11727.09859168,0.00013698,2]
[380028692,1755483088916,-1091.86,0.00013698,2]
[380028693,1755483088925,-813.10181408,0.00013698,2]
[380028694,1755483088936,-1821.687976,0.00013698,2]
[380028695,1755483088955,-2317.05020992,0.00013698,2]
[380028696,1755483088963,-1091.86,0.00013698,2]
[380028697,1755483088973,-1091.86,0.00013698,2]
[380028698,1755483088982,-1091.86,0.00013698,2]
[380028699,1755483088991,-1091.86,0.00013698,2]
[380028700,1755483089000,-158.32,0.000137,2]
[380028701,1755483089009,-158.32,0.000137,2]
[380028702,1755483089018,-570.441411,0.00013712,2]
[380028703,1755483089027,-151.0,0.00013719,2]
[380028704,1755483089036,-151.0,0.00013719,2]
[380028705,1755483089045,-633788.29110814,0.00013972,2]
[380028706,1755483099347,170.0,0.00010269,7]
[380028708,1755483145621,905.86,0.00024,120]
[380028738,1755483351960,3403.87466322,0.00015,22]
[380028739,1755483541964,5100.0,0.000139,13]
[380028740,1755483544806,5100.0,0.000139,14]
[380028742,1755483575183,1000.0,9.345e-05,2]
[380028743,1755483586661,316.14993965,0.00024,120]
[380028779,1755484060929,300.0,0.0001,3]
[380028781,1755484099414,15175.94256329,0.00012,30]
[380028782,1755484101656,-300.0,0.000101,3]
[380028784,1755484105391,-210.29135739,0.000101,3]
[380028785,1755484108142,-89.70864261,0.000101,3]
[380028786,1755484123794,1619.0,0.00024,120]
[380028791,1755484154851,-322.94139998,0.000102,3]
[380028792,1755484162457,-303.93337528,0.000102,3]
[380028793,1755484164426,400.0,0.00023287,120]
[380028794,1755484169424,-86.77610318,0.00010099,2]
[380028795,1755484169447,-226.44779364,0.00010099,2]
[380028796,1755484177625,-534.44409807,0.00010199,2]
[380028797,1755484185419,-195.35512668,0.00010014,2]
[380028798,1755484193794,-30.32512668,0.00010014,2]
[380028799,1755484193824,-339.34974664,0.00010014,2]
[380028800,1755484210130,170.0,9.998e-05,7]
[380028802,1755484217581,-44.91243723,0.00010199,2]
[380028803,1755484217612,-92.08070132,0.000102,3]
[380028804,1755484217702,-181.04452342,0.000102,3]
[380028816,1755484231912,-1200.0,0.000103,3]
[380028817,1755484231923,-1000.0,0.00010383,2]
[380028818,1755484231933,-1500.0,0.000104,3]
[380028845,1755484231942,-300.0,0.000105,3]
[380028853,1755484232382,-172.211534,0.00010511,2]
[380028854,1755484232392,-222.5,0.00010564,2]
[380028855,1755484232401,-1200.0,0.00010583,2]
[380028856,1755484232412,-2704.84053075,0.00010584,5]
[380028857,1755484232421,-300.0,0.000106,3]
[380028858,1755484232431,-300.0,0.000107,3]
[380028859,1755484232440,-300.0,0.000108,3]
[380028860,1755484232450,-1000.0,0.00010899,2]
[380028861,1755484232459,-360.1535,0.000109,2]
[380028862,1755484232469,-426.0,0.000109,3]
[380028863,1755484232479,-534.3970835,0.000109,2]
[380028864,1755484232489,-3382.8507,0.000109,2]
[380028865,1755484232499,-1123.74731026,0.000109,2]
[380028866,1755484232508,-792.37899879,0.000109,2]
[380028867,1755484232518,-150.0,0.00010959,2]
[380028868,1755484232528,-500.0,0.00010973,2]
[380028869,1755484232537,-500.0,0.00010973,2]
[380028870,1755484232548,-500.0,0.00010973,2]
[380028871,1755484232558,-162.21243398,0.00010973,2]
[380028872,1755484232568,-160.02288065,0.00010973,2]
[380028873,1755484232578,-500.0,0.00010973,2]
[380028874,1755484232588,-500.0,0.00010973,2]
[380028875,1755484232598,-327.30047882,0.00010973,2]
[380028876,1755484232607,-500.0,0.00010973,2]
[380028877,1755484232616,-500.0,0.00010973,2]
[380028878,1755484232629,-500.0,0.00010973,2]
[380028879,1755484232638,-500.0,0.00010973,2]
[380028880,1755484232648,-500.0,0.00010973,2]
[380028881,1755484232659,-500.0,0.00010973,2]
[380028882,1755484232670,-1283.5687851,0.00010978,2]
[380028883,1755484232679,-1700.65863417,0.00010999,2]
[380028884,1755484232689,-150.0,0.00010999,2]
[380028885,1755484232699,-150.0,0.00010999,2]
[380028886,1755484232707,-150.0,0.00010999,2]
[380028887,1755484232717,-150.0,0.00010999,2]
[380028888,1755484232726,-150.0,0.00010999,2]
[380028889,1755484232735,-150.0,0.00010999,2]
[380028890,1755484232746,-158.75385276,0.00010999,2]
[380028891,1755484232756,-49282.12305013,0.00011,2]
[380028892,1755484232932,-12802.6934659,0.00011,2]
[380028893,1755484232946,-261.36889935,0.00011,2]
[380028894,1755484232960,-277.64000007,0.00011,2]
[380028895,1755484232974,-462.5,0.00011,2]
[380028896,1755484233004,-30297.20463333,0.00011,2]
[380028897,1755484233015,-2440.42683332,0.00011,2]
[380028898,1755484233026,-7836.78304214,0.00011,2]
[380028911,1755484238910,-2205.87662514,0.00011,2]
[380028912,1755484239005,-10061.49703077,0.00011,2]
[380028913,1755484239129,-3579069.06248659,0.00011,2]
[380028914,1755484239194,-1160000.0,0.00011,2]
[380028923,1755484240290,-571.54169068,0.00011,2]
[380028924,1755484240326,-17693.30230606,0.00011,2]
[380028925,1755484240339,-11797.0,0.00011,2]
[380028926,1755484240457,-963.19752,0.00011,2]
[380028927,1755484240487,-1600.65,0.00011,2]
[380028928,1755484240498,-717.10633169,0.00011,2]
[380028929,1755484240510,-301.92197159,0.00011,2]
[380028936,1755484243576,-218.46799208,0.0001099,2]
[380028937,1755484243587,-218.46799208,0.0001099,2]
[380028938,1755484243598,-218.46799208,0.0001099,2]
[380028939,1755484243607,-3093.256735,0.00010999,2]
[380028940,1755484243700,-906.743265,0.00010999,2]
[380028941,1755484243711,-30089.84754062,0.00011,2]
[380028942,1755484243722,-620.56748458,0.00011,2]
[380028943,1755484243799,-1973.55692469,0.00011,2]
[380028944,1755484243812,-2691.625,0.00011,2]
[380028945,1755484243824,-1772.16665824,0.00011,2]
[380028946,1755484243890,-618.5336766,0.00011,2]
[380028947,1755484243902,-349.23031568,0.00011,2]
[380028948,1755484243914,-598.18982644,0.00011,2]
[380028949,1755484243925,-86962.5,0.00011,2]
[380028950,1755484243964,-278.774496,0.00011,2]
[380028980,1755484246014,-361.436012,0.000109,2]
[380028981,1755484246025,-9.70386062,0.000109,2]
[380028982,1755484246035,-1241.89613938,0.00011,2]
[380028983,1755484246047,-1172.31836306,0.00011,2]
[380028984,1755484246100,-3281.0519054,0.00011,2]
[380028985,1755484246116,-1149.7470142,0.00011,2]
[380028986,1755484246128,-6953.39,0.00011,2]
[380028987,1755484246139,-11631.235,0.00011,2]
[380028988,1755484246150,-740.25088,0.00011,2]
[380028991,1755484551570,200.0,9.9e-05,3]
[380028992,1755484553195,500.0,0.0001,3]
[380028993,1755484622383,2000.0,0.00024,120]
[380028994,1755484622633,1100.0,9.52e-05,2]
[380028995,1755484623701,1900.0,9.52e-05,2]
[380028996,1755484651355,3787.15059087,0.0001,2]
[380028997,1755484651385,500.0,0.0001,2]
[380028998,1755484752090,-233.45388708,0.000101,3]
[380028999,1755484758265,-215.30975051,9.91e-05,2]
[380029000,1755484759908,-166.55309189,9.91e-05,2]
[380029001,1755484760017,-5533.58481865,9.91e-05,2]
[380029002,1755484763518,-531.01565695,9.91e-05,2]
[380029003,1755484767236,-23526.67318487,9.91e-05,2]
[380029004,1755484769139,-156.587,9.91e-05,2]
[380029005,1755484770951,-407.42377577,9.91e-05,2]
[380029006,1755484774528,-174.07291074,9.91e-05,2]
[380029007,1755484775081,-5580.32249544,9.91e-05,2]
[380029008,1755484775740,-6532.65731518,9.91e-05,2]
[380029009,1755484776238,-378.18299658,0.0001,2]
[380029010,1755484780423,-185.6,0.0001,2]
[380029011,1755484782572,-100156.2500375,0.0001,2]
[380029012,1755484782641,-274.43563837,0.0001,2]
[380029013,1755484787532,-300.0,0.0001,2]
[380029014,1755484789839,-49684.80501299,0.0001,2]
[380029015,1755484790495,-239.3,0.0001,2]
[380029016,1755484792271,-155.17548708,0.0001,2]
[380029017,1755484796432,-196.04073725,0.0001,2]
[380029018,1755484798296,-1909.12,0.0001,2]
[380029019,1755484798332,-178.53,0.0001,2]
[380029020,1755484800157,-177.71031863,0.0001,2]
[380029021,1755484802601,-159.93510617,9.999e-05,2]
[380029022,1755484807810,-140.06489383,9.999e-05,2]
[380029023,1755484807849,-138.91455295,9.999e-05,2]
[380029024,1755484809557,-161.08544705,9.999e-05,2]
[380029025,1755484809580,-150.33806606,9.999e-05,2]
[380029026,1755484811705,-253.12777198,9.999e-05,2]
[380029027,1755484812077,-514.0,9.999e-05,2]
[380029028,1755484814309,-220.23923216,9.999e-05,2]
[380029029,1755484816231,-62.2949298,9.999e-05,2]
[380029030,1755484816255,-234.70262015,0.0001,2]
[380029031,1755484820527,-182.46875047,9.948e-05,2]
[380029032,1755484820939,-476.83102644,9.948e-05,2]
[380029033,1755484822308,-363.190239,9.948e-05,2]
[380029034,1755484824303,-182.69277209,9.948e-05,2]
[380029035,1755484824325,-50.13714087,0.0001,2]
[380029036,1755484827046,-302.81,0.0001,2]
[380029037,1755484827127,-267.17008704,0.0001,2]
[380029038,1755484834175,-187.68035564,9.999e-05,2]
[380029039,1755484834982,-1282.05384811,0.0001,2]
[380029040,1755484835823,-227.80183962,0.0001,2]
[380029041,1755484838366,-172.39420096,0.0001,2]
[380029042,1755484841761,-167.64430676,9.999e-05,2]
[380029043,1755484841787,-41.65038519,9.999e-05,2]
[380029044,1755484845247,-335.46262697,9.999e-05,2]
[380029045,1755484848058,-124.48153155,9.999e-05,2]
[380029046,1755484848080,-66.93928211,0.0001,2]
[380029047,1755484849065,-167.9,0.0001,2]
[380029048,1755484852108,-156.842551,0.0001,2]
[380029049,1755484854645,-171.79,0.0001,2]
[380029050,1755484854938,-410.946826,0.0001,2]
[380029051,1755484861294,-169.16365603,9.9e-05,2]
[380029052,1755484864140,-397.03631483,9.9e-05,2]
[380029053,1755484864427,-166.57,9.9e-05,2]
[380029055,1755484868800,-197.77684072,9.9e-05,2]
[380029056,1755484869523,-69.45318842,9.9e-05,2]
[380029057,1755484869767,-64.30362316,9.999e-05,2]
[380029058,1755484870937,-235.69637684,9.999e-05,2]
[380029059,1755484870958,-64.30362316,0.0001,2]
[380029060,1755484875940,-264.23944321,9.999e-05,2]
[380029061,1755484877513,-2.98,9.9e-05,3]
[380029062,1755484877540,-197.02,9.9e-05,3]
[380029063,1755484878198,-5.8680998,9.999e-05,2]
[380029064,1755484878221,-285.50183495,0.0001,2]
[380029065,1755484887404,-264.92536003,0.0001,2]
[380029066,1755484887538,1000.0,9.52e-05,2]
[380029067,1755484887618,1800.0,9.52e-05,2]
[380029068,1755484888356,-203.63,0.0001,2]
[380029069,1755484890814,186.9929141,9.52e-05,2]
[380029070,1755484890836,2813.0070859,9.52e-05,2]
[380029071,1755484915210,-342.59037086,9.999e-05,2]
[380029072,1755484915352,-190.40962914,9.999e-05,2]
[380029073,1755484938020,-164.08969981,0.0001,3]
[380029074,1755484955826,-221.81374846,9.9e-05,2]
[380029075,1755484962381,-150.0,0.0001,3]
[380029076,1755484970101,-179.23364984,9.9e-05,2]
[380029077,1755484973536,166.86,9.801e-05,2]
[380029078,1755484987114,-203.34175103,9.9e-05,2]
[380029079,1755484994268,-696.0266985,9.9e-05,2]
[380029080,1755484999175,-157.35,9.9e-05,2]
[380029082,1755485002087,-503.9733015,9.9e-05,2]
[380029083,1755485003837,-246.15013863,9.9e-05,2]
[380029084,1755485005463,-155.36053643,9.9e-05,2]
[380029085,1755485007087,-449.69,9.9e-05,2]
[380029086,1755485010886,-213.79627226,9.9e-05,2]
[380029087,1755485011693,-174.03692798,9.9e-05,2]
[380029088,1755485014963,-214.63987788,9.9e-05,2]
[380029089,1755485016129,-189.22218909,9.9e-05,2]
[380029090,1755485017713,965.622271,0.00024,120]
[380029091,1755485020950,-285.58126199,9.9e-05,2]
[380029092,1755485022505,-221.47770767,9.9e-05,2]
[380029093,1755485025389,-318.34103034,9.9e-05,2]
[380029094,1755485029197,-379.19805255,9.9e-05,2]
[380029095,1755485032235,-166.46474609,9.9e-05,2]
[380029096,1755485034199,-88.27960976,9.9e-05,2]
[380029097,1755485034222,-81.54142608,9.9e-05,2]
[380029098,1755485034470,-389.88420989,9.9e-05,2]
[380029099,1755485034500,-28.57436403,9.9e-05,2]
[380029100,1755485037106,-181.98224488,9.9e-05,2]
[380029101,1755485039551,-167.49875239,9.9e-05,2]
[380029102,1755485042872,-336.2480521,9.9e-05,2]
[380029103,1755485044979,-219.73842531,9.9e-05,2]
[380029104,1755485047410,-94.53252532,9.9e-05,2]
[380029105,1755485050738,-188.00364093,9.9e-05,2]
[380029106,1755485051151,-50.58575907,9.9e-05,2]
[380029107,1755485057575,-158.2854658,9.9e-05,2]
[380029108,1755485058323,-58.4986342,9.9e-05,2]
[380029109,1755485089019,-178.12137767,9.899e-05,2]
[380029110,1755485089041,-13.44005876,9.899e-05,2]
[380029111,1755485091855,-347.29365282,9.899e-05,2]
[380029112,1755485094267,-133.19228404,9.899e-05,2]
[380029113,1755485094290,-53.43549974,9.899e-05,2]
[380029114,1755485095555,124.85295756,9.733e-05,2]
[380029115,1755485095920,875.14704244,9.733e-05,2]
[380029116,1755485097997,-277.09516451,9.899e-05,2]
[380029117,1755485100823,-152.24088321,9.899e-05,2]
[380029118,1755485103997,-17.22845254,9.899e-05,2]
[380029119,1755485104021,-186.9480147,9.899e-05,2]
[380029120,1755485107000,-169.63791659,9.899e-05,2]
[380029121,1755485107027,-5.98846301,9.899e-05,2]
[380029122,1755485110873,-150.0,9.888e-05,2]
[380029123,1755485110894,-18.67212757,9.888e-05,2]
[380029124,1755485110981,-21.10212757,9.888e-05,2]
[380029125,1755485111745,-110.22574486,9.888e-05,2]
[380029126,1755485115712,-150.0,9.888e-05,2]
[380029127,1755485115733,-150.0,9.888e-05,2]
[380029128,1755485115755,-30.55652195,9.888e-05,2]
[380029129,1755485117145,-119.44347805,9.888e-05,2]
[380029130,1755485117371,-19.8730439,9.888e-05,2]
[380029131,1755485117899,-130.1269561,9.888e-05,2]
[380029132,1755485117920,-57.15428655,9.888e-05,2]
[380029133,1755485124349,-93.30512031,9.888e-05,2]
[380029134,1755485124371,-152.18297532,9.888e-05,2]
[380029135,1755485124394,-29.45319945,9.899e-05,2]
[380029136,1755485125423,-177.3,9.899e-05,2]
[380029137,1755485126234,-150.17856362,9.888e-05,2]
[380029138,1755485126256,-1.01463226,9.888e-05,2]
[380029139,1755485129211,-149.73482975,9.888e-05,2]
[380029140,1755485129232,-53.85707829,9.888e-05,2]
[380029141,1755485131852,-96.14292171,9.888e-05,2]
[380029142,1755485131879,-26.61748674,9.888e-05,2]
[380029143,1755485133017,-126.0391831,9.888e-05,2]
[380029144,1755485133040,-90.07600663,9.888e-05,2]
[380029145,1755485133123,-60.47962542,9.888e-05,2]
[380029146,1755485133133,-65.55955768,9.888e-05,2]
[380029147,1755485133875,1000.0,0.00024,120]
[380029148,1755485135876,-85.26296111,9.888e-05,2]
[380029149,1755485135898,-150.0,9.888e-05,2]
[380029150,1755485135920,-8.44156595,9.899e-05,2]
[380029151,1755485137833,-18.62594733,9.899e-05,2]
[380029152,1755485137902,-132.74810534,9.997e-05,2]
[380029153,1755485139380,-201.08238331,9.899e-05,2]
[380029154,1755485144773,-177.37591669,9.899e-05,2]
[380029155,1755485148519,-150.0,9.9e-05,2]
[380029156,1755485155553,-212.04413637,9.9e-05,2]
[380029157,1755485155619,-184.09011362,9.9e-05,2]
[380029158,1755485157250,-184.88180825,9.9e-05,2]
[380029159,1755485161041,-185.050511,9.9e-05,2]
[380029160,1755485162088,-215.68844194,9.9e-05,2]
[380029161,1755485163708,-278.61063792,9.9e-05,2]
[380029162,1755485166855,-215.90610509,9.9e-05,2]
[380029163,1755485169885,-389.26483292,9.9e-05,2]
[380029164,1755485176574,-176.55149581,9.899e-05,2]
[380029165,1755485178717,-148.14421136,9.899e-05,2]
[380029166,1755485178740,-241.61332438,9.9e-05,2]
[380029167,1755485183901,-1371.75667185,9.9e-05,2]
[380029168,1755485190282,-283.58147838,9.9e-05,2]
[380029169,1755485192058,-155.70200548,9.899e-05,2]
[380029170,1755485192170,-20.84949033,9.899e-05,2]
[380029171,1755485192362,-394.51746904,9.9e-05,2]
[380029172,1755485195022,-191.72426924,9.9e-05,2]
[380029173,1755485202015,-375.15801734,9.997e-05,2]
[380029174,1755485206624,-293.99819545,9.997e-05,2]
[380029175,1755485214498,-405.84155403,9.898e-05,2]
[380029177,1755485223167,-50.89874464,9.898e-05,2]
[380029178,1755485223190,-153.46876864,9.898e-05,2]
[380029179,1755485225157,-150.74946201,9.898e-05,2]
[380029180,1755485238890,1000.0,9.699e-05,2]
[380029181,1755485249943,-37.89569644,9.898e-05,2]
[380029182,1755485250209,-233.30313646,9.898e-05,2]
[380029183,1755485267306,-103.54093667,9.898e-05,2]
[380029184,1755485267330,-101.87355952,9.898e-05,2]
[380029185,1755485267470,-82.18665379,9.898e-05,2]
[380029186,1755485268767,-125.03431603,9.898e-05,2]
[380029187,1755485270258,-276.97025786,9.898e-05,2]
[380029188,1755485270281,-23.02974214,9.9e-05,2]
[380029189,1755485274142,-8.65270076,9.9e-05,2]
[380029190,1755485274168,-214.9420571,9.9e-05,2]
[380029191,1755485278029,-154.35,9.898e-05,2]
[380029192,1755485279436,-135.05762361,9.898e-05,2]
[380029193,1755485279460,-133.13377145,9.9e-05,3]
[380029194,1755485280240,150.0,9.5e-05,2]
[380029195,1755485282066,-255.69985031,9.9e-05,3]
[380029196,1755485282175,170.0,9.836e-05,7]
[380029197,1755485283759,-111.16637824,9.9e-05,3]
[380029198,1755485283784,-53.17085339,9.949e-05,2]
[380029199,1755485286537,-163.0876939,9.949e-05,2]
[380029200,1755485290118,-33.74145271,9.949e-05,2]
[380029201,1755485290148,-127.52538934,9.979e-05,2]
[380029202,1755485292185,-122.47461066,9.979e-05,2]
[380029203,1755485292215,-241.83934903,9.997e-05,2]
[380029204,1755485295429,-229.63646734,9.85e-05,2]
[380029205,1755485295632,-32.15241534,9.85e-05,2]
[380029206,1755485295700,-97.27516932,9.85e-05,2]
[380029207,1755485297710,-156.25633284,9.997e-05,2]
[380029208,1755485297735,-64.4921249,9.997e-05,2]
[380029209,1755485301768,-89.5177653,9.997e-05,2]
[380029210,1755485301791,-138.05136001,9.997e-05,2]
[380029211,1755485311936,-152.64726288,9.9e-05,2]
[380029212,1755485317652,-299.99,9.9e-05,2]
[380029213,1755485325354,-1909.13753929,9.9e-05,2]
[380029214,1755485326829,-204.73937457,9.9e-05,2]
[380029215,1755485329816,-293.62239233,9.9e-05,2]
[380029216,1755485333371,-219.10123474,9.9e-05,2]
[380029217,1755485336554,-189.3557179,9.9e-05,2]
[380029218,1755485338760,150.0,9.899e-05,2]
[380029219,1755485345719,-58.92937933,9.899e-05,2]
[380029220,1755485345746,-150.756501,9.899e-05,2]
[380029221,1755485345783,-153.99,9.9e-05,2]
[380029222,1755485345899,-479.62823934,9.9e-05,2]
[380029223,1755485349025,-204.11302856,9.9e-05,2]
[380029224,1755485351880,-154.18,9.9e-05,2]
[380029225,1755485357406,-205.44396227,9.9e-05,2]
[380029226,1755485360343,-182.60217982,9.9e-05,2]
[380029227,1755485363689,-193.37540226,9.9e-05,2]
[380029228,1755485366725,-195.94702973,9.9e-05,2]
[380029229,1755485369254,-218.29885101,9.9e-05,2]
[380029230,1755485374188,-170.00142975,9.9e-05,2]
[380029231,1755485378831,-175.6263796,9.9e-05,2]
[380029232,1755485382591,-202.92805224,9.9e-05,2]
[380029233,1755485383053,-1000.0,9.9e-05,2]
[380029234,1755485385294,344.58,9.652e-05,2]
[380029235,1755485385509,-388.79589907,9.9e-05,2]
[380029236,1755485385622,344.58,9.657e-05,2]
[380029237,1755485385833,344.58,9.662e-05,2]
[380029238,1755485386039,344.58,9.667e-05,2]
[380029239,1755485386272,344.58,9.672e-05,2]
[380029240,1755485386478,344.58,9.677e-05,2]
[380029241,1755485386713,344.58,9.682e-05,2]
[380029242,1755485386941,344.58,9.687e-05,2]
[380029243,1755485387113,-266.86673668,9.9e-05,2]
[380029244,1755485387224,344.58,9.692e-05,2]
[380029245,1755485387363,344.58,9.697e-05,2]
[380029246,1755485388074,344.58,9.703e-05,2]
[380029247,1755485389152,89.19300102,9.708e-05,2]
[380029248,1755485389182,255.38699898,9.708e-05,2]
[380029249,1755485389301,344.58,9.713e-05,2]
[380029250,1755485389433,344.58,9.718e-05,2]
[380029251,1755485389647,344.58,9.723e-05,2]
[380029252,1755485389746,344.58,9.728e-05,2]
[380029253,1755485389810,-310.50438287,9.9e-05,2]
[380029254,1755485389893,344.58,9.733e-05,2]
[380029255,1755485390209,344.58,9.738e-05,2]
[380029256,1755485390799,344.58,9.743e-05,2]
[380029257,1755485391017,344.58,9.748e-05,2]
[380029258,1755485392013,-174.47117341,9.89e-05,2]
[380029259,1755485393750,-41.21726853,9.89e-05,2]
[380029260,1755485393774,-262.48051246,9.9e-05,2]
[380029261,1755485396125,-328.59556724,9.9e-05,2]
[380029262,1755485396649,-200.0,9.9e-05,2]
[380029263,1755485398895,-357.40925513,9.9e-05,2]
[380029264,1755485400734,821.27,9.639e-05,2]
[380029265,1755485401220,-331.42739442,9.9e-05,2]
[380029266,1755485404354,-167.28302389,9.899e-05,2]
[380029267,1755485404933,-82.71697611,9.899e-05,2]
[380029268,1755485404943,-71.64675153,9.9e-05,2]
[380029278,1755485407835,-153.09856923,9.9e-05,2]
[380029279,1755485408899,-299.9614797,9.9e-05,2]
[380029280,1755485412736,-190.82404836,9.9e-05,2]
[380029281,1755485415820,-219.95489421,9.9e-05,2]
[380029282,1755485418006,-258.65306726,9.9e-05,2]
[380029283,1755485419672,-234.57931495,9.9e-05,2]
[380029284,1755485423141,-228.0290305,9.9e-05,2]
[380029285,1755485425222,-194.87817952,9.9e-05,2]
[380029286,1755485428505,-208.45992187,9.9e-05,2]
[380029287,1755485430637,-180.30222094,9.9e-05,2]
[380029291,1755485431876,-156.01492134,9.9e-05,2]
[380029292,1755485431890,-9646.86737643,9.9e-05,2]
[380029293,1755485431900,-2500.0,9.9e-05,2]
[380029294,1755485431910,-169.8383081,9.996e-05,2]
[380029295,1755485431922,-398.47859755,9.996e-05,2]
[380029296,1755485431932,-200.0,9.997e-05,2]
[380029297,1755485431943,-119.81571792,9.999e-05,2]
[380029298,1755485431956,-30.18428208,9.999e-05,2]
[380029299,1755485431968,-759.0,9.999e-05,2]
[380029300,1755485431977,-1101.26388621,0.0001,2]
[380029301,1755485431988,-611.52910207,0.0001,2]
[380029303,1755485432057,-73460.33591112,0.0001,2]
[380029304,1755485432068,-3269.14122567,0.0001,2]
[380029305,1755485432080,-5480.81581932,0.0001,2]
[380029306,1755485432121,-2363.49549408,0.0001,2]
[380029307,1755485432132,-500.81064924,0.0001,2]
[380029318,1755485438128,-5785.41299669,0.0001,2]
[380029319,1755485438200,-11610.0,0.0001,2]
[380029320,1755485438211,-66846.31270689,0.0001,2]
[380029321,1755485438463,-25881.98400544,0.0001,2]
[380029322,1755485438473,-302.0,0.0001,2]
[380029323,1755485438482,-500.0,0.0001,2]
[380029324,1755485438491,-151.0,0.0001,2]
[380029325,1755485438500,-1000.0,0.0001,3]
[380029326,1755485438509,-151.0,0.0001,2]
[380029327,1755485438517,-500.0,0.0001,2]
[380029328,1755485438527,-151.0,0.0001,2]
[380029329,1755485438537,-500.0,0.0001,2]
[380029330,1755485438546,-151.0,0.0001,2]
[380029331,1755485438555,-500.0,0.0001,2]
[380029332,1755485438565,-151.0,0.0001,2]
[380029333,1755485438574,-500.0,0.0001,2]
[380029334,1755485438583,-151.0,0.0001,2]
[380029335,1755485438593,-500.0,0.0001,2]
[380029336,1755485438602,-151.0,0.0001,2]